Cogmind - Beta 11 X3 @@@ ROGUE MODE // 2021.03.24 @ 14:46:26 Player: Luigi Panache Result: Self-destructed Performance ------------- Evolutions (0) 0 Regions Visited (4) 800 Robots Destroyed (19) 95 Value Destroyed (446) 446 Prototype IDs (1) 20 Alien Tech Used (0) 0 Bonus (232) 232 TOTAL SCORE: 1593 Bonus ------- Aligned with FarCom 300 Friendly Fire -68 Cogmind --------- Core Integrity 54/250 Matter 290/300 Energy 160/160 System Corruption 0% Temperature Cool (0) Movement Rolling (230) Ox10 Location -9/Mines Parts ------- > --- POWER (1) -------- Light Nuclear Core > --- PROPULSION (2) --- Wheel Wheel > --- UTILITY (2) ------ Humpback > --- WEAPON (2) ------- Small Laser > --- INVENTORY (35) --- Light Ion Engine Light Fission Core Light Fission Core Light Fission Core Aluminum Leg Aluminum Leg Wheel Small Storage Unit High-capacity Storage Unit Humpback High-capacity Matter Pod (200) Light Armor Plating Guided Plasma Cannon XL Autogun Array AWS/Autocannon Peak State ------------ > --- POWER ------------ Light Nuclear Core > --- PROPULSION ------- Wheel Wheel > --- UTILITY ---------- Humpback > --- WEAPON ----------- Small Laser Guided Plasma Cannon > --- INVENTORY -------- Light Ion Engine Light Fission Core Light Fission Core Light Fission Core Aluminum Leg Aluminum Leg Wheel Small Storage Unit Humpback High-capacity Matter Pod Light Armor Plating [Rating: 18] Favorites ----------- Power Light Ion Engine Engine Light Ion Engine Power Core Light Nuclear Core Propulsion Light Treads Treads Light Treads Leg Aluminum Leg Wheel Wheel Utility Small Storage Unit Storage Small Storage Unit Protection Light Armor Plating Weapon Small Laser Energy Gun Small Laser Energy Cannon Guided Plasma Cannon Ballistic Gun Light Assault Rifle Launcher Grenade Launcher Build | -11 -10 -10 -10 -9 ------- Run | Scr Mat Min Exi Min Slots Evolved . | . . . . . Power . | . . . . . Propulsion . | . . . . . Utility . | . . . . . Weapon . | . . . . . Parts Attached 23 | . 6 13 4 . Power 2 | . 1 1 . . Engine 1 | . 1 . . . Core 1 | . . 1 . . Reactor . | . . . . . Propulsion 8 | . 3 3 2 . Treads 3 | . 3 . . . Leg 3 | . . 3 . . Wheel 2 | . . . 2 . Hover . | . . . . . Flight . | . . . . . Utility 2 | . . 1 1 . Device . | . . . . . Storage 1 | . . . 1 . Processor . | . . . . . Hackware . | . . . . . Protection 1 | . . 1 . . Artifact . | . . . . . Weapon 11 | . 2 8 1 . Energy Gun 4 | . . 4 . . Energy Cannon 1 | . . . 1 . Ballistic Gun 5 | . 2 3 . . Ballistic Cannon . | . . . . . Launcher 1 | . . 1 . . Special Weapon . | . . . . . Impact Weapon . | . . . . . Slashing Weapon . | . . . . . Piercing Weapon . | . . . . . Special Melee Weapon . | . . . . . Unidentified Prototypes 1 | . . . 1 . Parts Lost 11 | . 1 10 . . Power 1 | . . 1 . . Propulsion 2 | . . 2 . . Utility . | . . . . . Weapon 8 | . 1 7 . . Highest Loss Streak 5 | . 1 5 . . Average Slot Usage (%) 76 | . 83 77 73 . Engine 6 | . 13 9 . . Core 6 | . . 3 14 . Treads 10 | . 26 13 . . Leg 6 | . 1 8 4 . Wheel 7 | . . . 23 . Storage 14 | . 14 14 14 . Protection 1 | . . . 2 . Energy Gun 13 | . 24 11 14 . Ballistic Gun 9 | . 2 15 . . Naked Turns . | . . . . . Heaviest Build 206 | 10 10 14 206 206 Greatest Support 40 | 20 40 40 20 20 Greatest Overweight (x) 10 | . . . 10 10 Average Overweight (x) 2 | . . . 7 10 Largest Inventory Capacity 35 | . 8 8 35 35 Average Capacity 15 | . 8 8 30 35 Most Carried 21 | . 8 8 21 21 Average Carried 9 | . 7 7 14 21 Final Capacity 35 | 8 8 8 35 35 Final Carried 21 | 6 8 4 21 21 Class Distribution -------------------- 70% | Mutant 27% | Hauler-Mutant Dominant Class ---------------- Mutant | -10/Materials Mutant | -10/Mines Hauler-Mutant | -10/Exiles Hauler-Mutant | -9/Mines Resources | -11 -10 -10 -10 -9 ----------- Run | Scr Mat Min Exi Min Matter Collected 506 | 198 61 167 80 . Remotely . | . . . . . Salvage Created 586 | . 206 380 . . Parts 31 | . 20 11 . . Haulers Intercepted . | . . . . . Recyclers Shooed . | . . . . . Parts Field Recycled . | . . . . . Retrieved Matter . | . . . . . Parts Self-Destructed . | . . . . . Prevented . | . . . . . Kills | -11 -10 -10 -10 -9 ------- Run | Scr Mat Min Exi Min Combat Hostiles Destroyed 18 | . 7 11 . . Guns 18 | . 7 11 . . Classes Destroyed 4 | . 3 1 . . Builder 2 | . 2 . . . Swarmer 7 | . 5 2 . . Grunt 10 | . 2 8 . . Assembled 1 | . . 1 . . Best Kill Streak 5 | . 5 2 . . Combat Bots Only 3 | . 3 2 . . Max Kills in Single Turn 2 | . 2 1 . . Gunslinging . | . . . . . Exploded . | . . . . . Melee . | . . . . . Uniques/NPCs Destroyed . | . . . . . Combat | -11 -10 -10 -10 -9 -------- Run | Scr Mat Min Exi Min Damage Taken 1186 | . 237 949 . . Core 196 | . 37 159 . . Absorbed by Shields . | . . . . . Core Remaining (%) 100 | 100 . . . . Volleys Fired 79 | . 21 58 . . Largest 2 | . 2 2 . . Hottest 100 | . 80 100 . . Shots Fired 141 | . 40 101 . . Gun 139 | . 40 99 . . Cannon . | . . . . . Launcher 2 | . . 2 . . Special . | . . . . . Kinetic 71 | . . 71 . . Thermal 68 | . 40 28 . . Explosive 2 | . . 2 . . Electromagnetic . | . . . . . Robot Hit Streak 12 | . 6 12 . . Robot Miss Streak 5 | . 4 5 . . Penetration Max . | . . . . . Secondary Targets 3 | . 1 2 . . Max Gunslinging Chain 1 | . 1 1 . . Shots Hit Robots 87 | . 23 64 . . Core Hits 38 | . 11 27 . . Critical Hits . | . . . . . Critical Kills . | . . . . . Critical Parts Destroyed . | . . . . . Melee Attacks . | . . . . . Impact . | . . . . . Slashing . | . . . . . Piercing . | . . . . . Sneak Attacks . | . . . . . Combat Hostiles . | . . . . . Follow-up Attacks . | . . . . . Damage Inflicted 995 | . 302 693 . . Guns 890 | . 302 588 . . Cannons . | . . . . . Explosions 85 | . . 85 . . Melee . | . . . . . Ramming 20 | . . 20 . . Kinetic 385 | . . 385 . . Thermal 505 | . 302 203 . . Explosive 85 | . . 85 . . Electromagnetic . | . . . . . Impact . | . . . . . Slashing . | . . . . . Piercing . | . . . . . Highest Corruption . | . . . . . Average Corruption . | . . . . . Corruption Purged . | . . . . . Overload Shots . | . . . . . Overflow Damage 11 | . . 11 . . Projectiles . | . . . . . Explosions 11 | . . 11 . . Melee . | . . . . . Knockbacks . | . . . . . Impact . | . . . . . Kinetic . | . . . . . Secondary . | . . . . . Self-Inflicted Damage 71 | . . 71 . . Shots 2 | . . 2 . . Rammed 6 | . . 6 . . Targets Rammed 7 | . . 7 . . Kicked 1 | . . 1 . . Crushed . | . . . . . Highest Temperature 216 | . 216 166 . . Average Temperature 60 | . 88 45 . . Received Heat Transfer 444 | . 36 408 . . Siege Activations . | . . . . . Robots Corrupted . | . . . . . Combat Hostiles . | . . . . . Parts Fried . | . . . . . Impact Corruptions . | . . . . . Robots Melted . | . . . . . Combat Hostiles . | . . . . . Parts Melted 2 | . . 2 . . Heat Transferred 1148 | . 650 498 . . Parts Sabotaged . | . . . . . Parts Stolen . | . . . . . Parts Stripped . | . . . . . Power Chain Reactions . | . . . . . Missiles Intercepted . | . . . . . Alert | -11 -10 -10 -10 -9 ------- Run | Scr Mat Min Exi Min Peak Influence 190 | . 190 128 . . Initial 73 | . . 73 . . Average 66 | . 87 63 . . Maximum Alert Level . | . . . . . Low Security (%) 100 | . 100 100 . 100 Level 1 . | . . . . . Level 2 . | . . . . . Level 3 . | . . . . . Level 4 . | . . . . . Level 5 . | . . . . . High Security . | . . . . . Max Security . | . . . . . Squads Dispatched 1 | . 1 . . . Investigation . | . . . . . Extermination . | . . . . . Reinforcement 1 | . 1 . . . Assault . | . . . . . Garrison . | . . . . . Intercept . | . . . . . Construction Impeded . | . . . . . Haulers Reinforced . | . . . . . Stealth | -11 -10 -10 -10 -9 --------- Run | Scr Mat Min Exi Min Distress Signals 4 | . 1 3 . . Communications Jammed . | . . . . . Distress Signals . | . . . . . Times Spotted 23 | . 11 12 . . Peak Tracking Total 5 | . 5 3 . . Tactical Retreats 5 | . 2 3 . . Traps | -11 -10 -10 -10 -9 ------- Run | Scr Mat Min Exi Min Traps Triggered 1 | . 1 . . . Indirectly . | . . . . . Trap Hack Attempts . | . . . . . Triggered . | . . . . . Disarmed . | . . . . . Reprogrammed . | . . . . . Reused . | . . . . . Traps Extracted . | . . . . . Installed . | . . . . . Triggered . | . . . . . Machines | -11 -10 -10 -10 -9 ---------- Run | Scr Mat Min Exi Min Machines Disabled . | . . . . . Max in Single Turn . | . . . . . Machines Sabotaged . | . . . . . Garrisons Compromised . | . . . . . Overloaded Fab Kills . | . . . . . Fab Network Shutdowns . | . . . . . Hacking | -11 -10 -10 -10 -9 --------- Run | Scr Mat Min Exi Min Machines Accessed 2 | . 1 . 1 . Terminals 1 | . 1 . . . Fabricators . | . . . . . Repair Stations . | . . . . . Recycling Units . | . . . . . Scanalyzers . | . . . . . Garrison Access . | . . . . . Total Hacks 6 | . 5 . 1 . Successful 4 | . 3 . 1 . Failed 1 | . 1 . . . Catastrophic . | . . . . . Database Lockouts 1 | . 1 . . . Manual 5 | . 4 . 1 . Terminals 5 | . 5 . . . Fabricators . | . . . . . Repair Stations . | . . . . . Recycling Units . | . . . . . Scanalyzers . | . . . . . Garrison Access . | . . . . . Terminal Hacks 4 | . 3 . 1 . Record 1 | . . . 1 . Part Schematic 1 | . 1 . . . Robot Analysis 1 | . 1 . . . Hauler Manifests 1 | . 1 . . . Fabricator Hacks . | . . . . . Repair Station Hacks . | . . . . . Recycling Unit Hacks . | . . . . . Scanalyzer . | . . . . . Garrison Access Hacks . | . . . . . Unauthorized Hacks . | . . . . . Terminals . | . . . . . Fabricators . | . . . . . Repair Stations . | . . . . . Recycling Units . | . . . . . Scanalyzers . | . . . . . Garrison Access . | . . . . . Data Cores Recovered . | . . . . . Used . | . . . . . Hacking Detections 1 | . 1 . . . Full Trace Events . | . . . . . Feedback Events . | . . . . . Feedback Blocked . | . . . . . Robot Schematics Acquired . | . . . . . Robots Built . | . . . . . Matter . | . . . . . Time . | . . . . . Total Robot Build Rating . | . . . . . Part Schematics Acquired 1 | . 1 . . . Parts Built . | . . . . . Matter . | . . . . . Time . | . . . . . Total Part Build Rating . | . . . . . Parts Repaired . | . . . . . Time . | . . . . . Parts Recycled . | . . . . . Recycled Matter . | . . . . . Retrieved Matter . | . . . . . Retrieved Components . | . . . . . Parts Scanalyzed . | . . . . . Part Schematics Acquired . | . . . . . Parts Damaged . | . . . . . Bothacking | -11 -10 -10 -10 -9 ------------ Run | Scr Mat Min Exi Min Used RIF Installer . | . . . . . Robots Hacked . | . . . . . Non-combat . | . . . . . Combat . | . . . . . Robot Hacks Applied . | . . . . . Relay Couplers Released . | . . . . . Robots Rewired . | . . . . . Allies Hacked . | . . . . . Hacks Repelled . | . . . . . Allies | -11 -10 -10 -10 -9 -------- Run | Scr Mat Min Exi Min Total Allies 2 | . . 2 . . Largest Group 2 | . . 2 . . Highest-Rated Group 47 | . . 47 . . Highest-Rated Ally 31 | . . 31 . . Total Orders . | . . . . . Ally Attacks . | . . . . . Total Damage . | . . . . . Kills . | . . . . . Allies Corrupted . | . . . . . Allies Melted . | . . . . . Intel | -11 -10 -10 -10 -9 ------- Run | Scr Mat Min Exi Min Robot Analysis Total 1 | . 1 . . . Derelict Logs Recovered 2 | . . 2 . . Drone Launches . | . . . . . Drone Recoveries . | . . . . . Exploration | -11 -10 -10 -10 -9 ------------- Run | Scr Mat Min Exi Min Turns Passed 1974 | . 185 1158 628 3 Spaces Moved 847 | 1 72 470 303 1 Core . | . . . . . Treads 338 | . 65 273 . . Legs 285 | 1 7 197 80 . Wheels 224 | . . . 223 1 Hover . | . . . . . Flight . | . . . . . Fastest Speed 120 | 120 120 120 120 230 Average Speed 165 | 120 156 143 200 230 Slowest Speed 230 | 120 160 160 230 230 Overloaded Moves . | . . . . . Propulsion Burnouts . | . . . . . Robots Hopped . | . . . . . Cave-ins Triggered . | . . . . . Exploration Rate (%) 38 | 2 20 94 70 6 Regions Visited 4 Branch Regions 3 Pre-discovered Areas 2 | . . 1 1 . Known Exits Taken . | . . . . . Unknown Exits Taken 4 | 1 1 1 1 . Scrap Searched 1 | . . 1 . . Spaces Dug . | . . . . . Terrain Destroyed 8 | . . 8 . . Melee . | . . . . . Projectile . | . . . . . AOE 8 | . . 8 . . Terrain Rammed . | . . . . . Walls Destroyed . | . . . . . Machines Disabled . | . . . . . Actions | -11 -10 -10 -10 -9 --------- Run | Scr Mat Min Exi Min Total 1292 | . 102 865 324 1 Wait 313 | . 3 310 . . Move 843 | . 71 469 302 1 Hop . | . . . . . Pick Up 19 | . 1 5 13 . Fast Attach 7 | . 3 2 2 . Attach 10 | . . 8 2 . Detach 3 | . . . 3 . Swap 6 | . 3 3 . . Drop 5 | . . 3 2 . Fire 79 | . 21 58 . . Melee . | . . . . . Ram . | . . . . . Kick 1 | . . 1 . . Crush 6 | . . 6 . . Escape Stasis . | . . . . . Rewire . | . . . . . Trap . | . . . . . Miscellaneous . | . . . . . Route ------- -11/Scrapyard -10/Materials -10/Mines (discovered 3 exits: [*Mat x2] / *Exi) -10/Exiles -9/Mines History --------- Turn | Location | Event 1 | -11/Scrapyard | Discovered new exit (range 0) 1 | -11/Scrapyard | Entered Materials 15 | -10/Materials | Central database locked down 148 | -10/Materials | Discovered new exit (range 15) 186 | -10/Materials | Entered Mines 252 | -10/Mines | Learned location of Storage (-7) 327 | -10/Mines | Build established: Mutant 454 | -10/Mines | Excavation squad dispatched 454 | -10/Mines | A large section of the Mines collapsed 704 | -10/Mines | Excavation squad dispatched 783 | -10/Mines | Discovered new exit (range 11) 826 | -10/Mines | Discovered new exit (range 11) 1030 | -10/Mines | Lost 3 parts (1p1n1w) 1049 | -10/Mines | Core integrity fell below 50% 1279 | -10/Mines | Lost 5 parts (5w) 1339 | -10/Mines | Deemed a non-threat by the Exiles lab entrance 1339 | -10/Mines | Discovered new exit (range 5) 1344 | -10/Mines | Entered Exiles 1379 | -10/Exiles | Met 8R-AWN 1395 | -10/Exiles | Met EX-HEX 1517 | -10/Exiles | Met EX-DEC 1556 | -10/Exiles | Learned location of Zion (-7) 1607 | -10/Exiles | Met EX-BIN 1634 | -10/Exiles | Aligned with FarCom system 1637 | -10/Exiles | Given EX-Vault access code 1694 | -10/Exiles | Opened EX-Vault 1701 | -10/Exiles | Found Prototype Energy Cannon 1701 | -10/Exiles | Identified Gui. Plasma Cannon 1710 | -10/Exiles | Found Prototype Ballistic Cannon 1713 | -10/Exiles | Found Prototype Ballistic Gun 1743 | -10/Exiles | Build established: Hauler-Mutant 1764 | -10/Exiles | Warned to stay clear of 0b10 Research branches 1953 | -10/Exiles | Discovered new exit (range 10) 1972 | -10/Exiles | Stole three prototypes: Gui. Plasma Cannon, XL Autogun Array, AWS/Autocannon 1972 | -10/Exiles | Entered Mines 1975 | -9/Mines | Self-destructed Last Messages --------------- 01701_ Identified Gui. Plasma Cannon. 01703_ Dropped Gui. Plasma Cannon. 01710_ Acquired Prototype Ballistic Cannon. 01713_ Acquired Prototype Ballistic Gun. 01719_ Acquired Gui. Plasma Cannon. EX-BIN: Oh yeah, I'd suggest you stay away from the 0b10 Research branches, since the FarCom signals could be picked up there, but you're welcome to try if you really want to. And if we have to leave here due to unforeseen circumstances, don't worry the FarCom system will continue to maintain contact via our distributed network. EX-BIN: And don't even think about spreading that code around. We're gonna change it right after you leave. Most certainly not to something like 1234 which I did last time as a little joke and some thief managed to sneak in here and steal a few of HEX's prototypes. 01915_ Acquired Hcp. Storage Unit. 01953_ EXIT=FOUND LOCATION=UNKNOWN GOAL=ESCAPE 01972_ Receiving FarCom transmissions... Map ----- +----------------------------------------------------+ | ??????????????????????????????????? | | ??????????????????????????????????? | | ??????????????????????????????????? | | ??????????????????????????????????? | | ??????????????????????????????????? | | ??????????????????????????????????? | | ??????????????????????????????????? | | ??????????????????????????????????? | | ??????????????????????????????????? | | ??????????????????????????????????? | | ??????????????????????????????????? | | ??????????????????????????????????? | | ??????????????????????????????????? | | ??????????????????????????????????? | | ?????????##???????????????????????? | | ????????## ???????????????????????? | | ???????## ???????????????????????? | | ???????? #??????????????????????? | | ???????? ##?????????????????????? | | ????????? ##????????????????????? | | ????????? ##???????????????????? | | ?????????# ##??????????????????? | | ????????## #??????????????????? | | ???????## #??????????????????? | | ??????## #??????????????????? | | ??????# @ ##??????????????????? | | ?????# k! ##???????????????????? | | ????# ##????????????????????? | | ????# #?????????????????????? | | ????# ?????????????????????? | | ????# ?????????????????????? | | ????# ##????????????????????? | | ????# ##?????????????????????? | | ????# !##??????????????????????? | | ???? t #????????????????????????? | | ???######?????????????????????????? | | ??????????????????????????????????? | | ??????????????????????????????????? | | ??????????????????????????????????? | | ??????????????????????????????????? | | ??????????????????????????????????? | | ??????????????????????????????????? | | ??????????????????????????????????? | | | | | | | | | | | | | | | +----------------------------------------------------+ Best States ------------- Heat Dissipation 25 Energy Generation 14 Energy Capacity 160 Matter Stores 300 Matter Capacity 300 Sight Range 16 Terrain Scan Density 10 Armor Coverage 150 Evasion (%) 55 Recoil Reduction 2 Item Schematics ----------------- Huge Storage Unit | -10/Materials | Hacked Robot Schematics ------------------ None Fabricated ------------ Nothing Alien Tech Used ----------------- None Achievements -------------- None Challenges ------------ None Game ------ Seed LinkedExperimentalMachine Manual? 0 Play Time 00:08:42 Cumulative 316.9 hours Start 2021.03.24 @ 14:37:35 End 2021.03.24 @ 14:46:26 Sessions 1 Manual Loads 0 Difficulty Rogue Special Mode None Game No. 311 Rogue 141 Adventurer 92 Explorer 78 Win Type - Total 23 Types 16/0/5/2/0/0/0/0/0 Lore% 80 Gallery% 88 Achievement% 69 Wizard Run 0 Options --------- ASCII 1 Keyboard 0 Movement Numpad Keybinds 0 Fullscreen 2 Font 18/TerminusBold Map View 76x50 Tactical HUD 1 Map Filters NONE Filters NONE Steam 1 RUN: 4aaf2496-4dad-4d17-85c8-1c196070ec23